Cogmind - Beta 15 @@@ ROGUE MODE // 2025.07.29 @ 20:32:30 Player: StaticNoob Result: Destroyed by S-10 Pest with Light Assault Rifle Performance ------------- Evolutions (0) 0 Regions Visited (2) 400 Robots Destroyed (24) 120 Value Destroyed (640) 640 Prototype IDs (3) 60 Alien Tech Used (0) 0 Bonus (0) 0 TOTAL SCORE: 1220 Bonus ------- None Cogmind --------- Core Integrity 0/250 Matter 248/300 Energy 250/250 System Corruption 1% Temperature Cool (0) Movement Walking (260) Ox2 Location -10/Mines Parts ------- > --- POWER (1) -------- Ion Engine > --- PROPULSION (2) --- Aluminum Leg Aluminum Leg > --- UTILITY (2) ------ High-capacity Storage Unit Seismic Detector > --- WEAPON (2) ------- Small Laser Assault Rifle > --- INVENTORY (20) --- Light Ion Engine Light Treads Improved Heat Sink Huge Storage Unit High-capacity Matter Pod (126) Seismic Detector Light Armor Plating Tractor Beam Particle Gun Beam Cannon Peak State ------------ > --- POWER ------------ Ion Engine > --- PROPULSION ------- Aluminum Leg Aluminum Leg > --- UTILITY ---------- High-capacity Storage Unit Seismic Detector > --- WEAPON ----------- Small Laser Assault Rifle > --- INVENTORY -------- Light Ion Engine Light Treads Improved Heat Sink Huge Storage Unit High-capacity Matter Pod Seismic Detector Light Armor Plating Tractor Beam Beam Cannon [Rating: 8] Favorites ----------- Power Ion Engine Engine Ion Engine Propulsion Aluminum Leg Treads Light Treads Leg Aluminum Leg Wheel Compact Wheel Utility Seismic Detector Device Seismic Detector Storage Huge Storage Unit Weapon Light Assault Rifle Energy Gun Small Laser Ballistic Gun Light Assault Rifle Build | -11 -10 -10 ------- Run | Yrd Mat Min Slots Evolved . | . . . Power . | . . . Propulsion . | . . . Utility . | . . . Weapon . | . . . Parts Attached 20 | 7 12 1 Power 3 | 1 2 . Engine 3 | 1 2 . Core . | . . . Reactor . | . . . Propulsion 6 | 2 4 . Treads 3 | 2 1 . Leg 2 | . 2 . Wheel 1 | . 1 . Hover . | . . . Flight . | . . . Utility 5 | 2 3 . Device 2 | 1 1 . Storage 3 | 1 2 . Processor . | . . . Hackware . | . . . Protection . | . . . Artifact . | . . . Weapon 6 | 2 3 1 Energy Gun 1 | . 1 . Energy Cannon . | . . . Ballistic Gun 5 | 2 2 1 Ballistic Cannon . | . . . Launcher . | . . . Special Weapon . | . . . Impact Weapon . | . . . Slashing Weapon . | . . . Piercing Weapon . | . . . Special Melee Weapon . | . . . Unidentified Prototypes . | . . . Parts Lost 8 | . 7 1 Power 2 | . 2 . Propulsion 2 | . 2 . Utility . | . . . Weapon 4 | . 3 1 Highest Loss Streak 3 | . 3 1 To Critical Strikes . | . . . Average Backups 6 | . 6 9 Power . | . . 1 Propulsion . | . . 1 Utility 3 | . 3 5 Weapon 1 | . 1 1 Tool/Special . | . . . Unused Backups 8 | . 1 7 Power 1 | . . 1 Propulsion . | . . . Utility 5 | . 1 4 Weapon 2 | . . 2 Tool/Special . | . . . Average Slot Usage (%) 97 | . 97 99 Engine 13 | . 13 14 Treads 9 | . 10 . Leg 13 | . 11 28 Wheel 3 | . 3 . Device 14 | . 14 14 Storage 14 | . 14 14 Energy Gun 6 | . 6 14 Ballistic Gun 20 | . 21 13 Peak Build Rating 8 | 7 7 8 Average Rating 6 | 4 6 7 On Entrance 4 | . 7 7 Naked Turns . | . . . Heaviest Build 89 | 14 89 49 Greatest Support 40 | 40 40 20 Greatest Overweight (x) 8 | . 8 2 Average Overweight (x) 2 | . 2 2 Largest Inventory Capacity 25 | 8 25 20 Average Capacity 19 | 6 20 20 Most Carried 10 | 2 9 10 Average Carried 6 | . 6 9 Final Capacity 20 | 8 20 20 Final Carried 10 | 2 9 10 Class Distribution -------------------- 53% | Mutant 46% | Scavenger-Mutant Dominant Class ---------------- Mutant | -10/Materials Scavenger-Mutant | -10/Mines Resources | -11 -10 -10 ----------- Run | Yrd Mat Min Matter Collected 890 | 94 702 94 Remotely . | . . . Salvage Created 940 | 27 702 211 Parts 51 | 4 36 11 Haulers Intercepted 2 | . 2 . Recyclers Shooed 1 | . 1 . Parts Field Recycled . | . . . Retrieved Matter . | . . . Parts Self-Destructed . | . . . Prevented . | . . . Kills | -11 -10 -10 ------- Run | Yrd Mat Min Combat Hostiles Destroyed 17 | . 11 6 Guns 17 | . 11 6 Classes Destroyed 7 | 1 5 1 Worker 2 | . 2 . Tunneler 1 | 1 . . Hauler 2 | . 2 . Recycler 1 | . 1 . Watcher 1 | . 1 . Swarmer 2 | . . 2 Grunt 15 | . 11 4 Best Kill Streak 5 | 1 5 4 Combat Bots Only 4 | . 4 4 Max Kills in Single Turn 1 | 1 1 1 Gunslinging . | . . . Exploded . | . . . Melee . | . . . Uniques/NPCs Destroyed . | . . . Combat | -11 -10 -10 -------- Run | Yrd Mat Min Hostile Shots Fired 168 | . 126 42 Missed 54 | . 40 14 Hits 114 | . 86 28 Projectile 114 | . 86 28 Critical Strikes 4 | . 3 1 Damage Taken 1404 | . 1056 348 Core 255 | . 198 57 Absorbed by Shields . | . . . Core Remaining (%) 100 | 100 . . Volleys Fired 113 | 2 91 20 Largest 2 | 2 2 2 Hottest 60 | 40 60 60 Shots Fired 214 | 4 171 39 Gun 214 | 4 171 39 Cannon . | . . . Launcher . | . . . Special . | . . . Kinetic 188 | 4 165 19 Thermal 26 | . 6 20 Explosive . | . . . Electromagnetic . | . . . Robot Hit Streak 11 | 1 11 11 Robot Miss Streak 4 | 1 4 3 Penetration Max . | . . . Secondary Targets 2 | . 2 . Max Gunslinging Chain 1 | . 1 . Shots Hit Robots 136 | 2 107 27 Core Hits 56 | 2 42 12 Critical Kills . | . . . Critical Parts Destroyed 1 | . 1 . Critical Strikes 1 | . 1 . Destroy 1 | . 1 . Melee Attacks . | . . . Impact . | . . . Slashing . | . . . Piercing . | . . . Sneak Attacks . | . . . Combat Hostiles . | . . . Follow-up Attacks . | . . . Damage Inflicted 1639 | 17 1296 326 Guns 1524 | 17 1181 326 Cannons . | . . . Explosions 115 | . 115 . Melee . | . . . Ramming . | . . . Kinetic 1309 | 17 1125 167 Thermal 215 | . 56 159 Explosive . | . . . Electromagnetic 115 | . 115 . Impact . | . . . Slashing . | . . . Piercing . | . . . Highest Corruption 1 | . 1 1 Average Corruption 1 | . 1 1 Corruption Purged . | . . . Corruption Blocked . | . . . Effects 12 | . 10 2 Message Errors 1 | . 1 . Matter Fused 3 | . 2 1 Heat Flow Errors 1 | . . 1 Energy Discharges 1 | . 1 . Data Loss (minor) 2 | . 2 . Data Loss (major) 1 | . 1 . Misfires 3 | . 3 . Overload Shots . | . . . Overflow Damage . | . . . Projectiles . | . . . Explosions . | . . . Melee . | . . . Knockbacks . | . . . Impact . | . . . Kinetic . | . . . Secondary . | . . . Self-Inflicted Damage . | . . . Shots . | . . . Rammed . | . . . Targets Rammed . | . . . Kicked . | . . . Crushed . | . . . Highest Temperature 158 | . 42 158 Average Temperature 31 | . 10 65 Received Heat Transfer 831 | . 654 177 Siege Activations . | . . . Martial Activations . | . . . Shielding Activations . | . . . Robots Disrupted . | . . . Combat Hostiles . | . . . Robots Corrupted . | . . . Combat Hostiles . | . . . Parts Fried . | . . . Impact Corruptions . | . . . Robots Melted . | . . . Combat Hostiles . | . . . Parts Melted 2 | . . 2 Heat Transferred 475 | . 125 350 Parts Sabotaged . | . . . Parts Stolen . | . . . Parts Stripped . | . . . Power Chain Reactions . | . . . Alert | -11 -10 -10 ------- Run | Yrd Mat Min Maximum Alert Level . | . . . Low Security (%) 100 | 100 100 100 Level 1 . | . . . Level 2 . | . . . Level 3 . | . . . Level 4 . | . . . Level 5 . | . . . High Security . | . . . Max Security . | . . . Peak Influence 85 | 5 85 80 Initial . | . . . Average 12 | . 12 12 Influence Increases 510 | 5 355 150 Destroy 0b10 Robot/C 340 | . 220 120 Destroy 0b10 Robot/NC 35 | 5 30 . Destroy Leader 76 | . 46 30 Successful Hack 14 | . 14 . Disable Machine 15 | . 15 . Lose Combat Pursuer 30 | . 30 . Influence Decreases 430 | 5 355 70 Time Decay 379 | 5 314 60 Lost Part 51 | . 41 10 Squads Dispatched 2 | . 2 . Investigation . | . . . Extermination . | . . . Reinforcement 2 | . 2 . Assault . | . . . Garrison . | . . . Intercept . | . . . Searches Triggered . | . . . Construction Impeded . | . . . Haulers Reinforced . | . . . Active Scanning Responses . | . . . Cargo Convoy Interrupts . | . . . Stealth | -11 -10 -10 --------- Run | Yrd Mat Min Distress Signals 2 | . 2 . Communications Jammed . | . . . Distress Signals . | . . . Times Spotted 32 | . 25 7 Peak Tracking Total 6 | . 6 3 Tactical Retreats 2 | . 2 . Traps | -11 -10 -10 ------- Run | Yrd Mat Min Traps Triggered 5 | . 5 . Indirectly . | . . . Trap Hack Attempts . | . . . Triggered . | . . . Disarmed . | . . . Reprogrammed . | . . . Reused . | . . . Traps Extracted . | . . . Installed . | . . . Triggered . | . . . Machines | -11 -10 -10 ---------- Run | Yrd Mat Min Machines Disabled 1 | . 1 . Max in Single Turn 1 | . 1 . Machines Repaired . | . . . Machines Dismantled . | . . . Machines Sabotaged . | . . . Overloaded Fab Kills . | . . . Hacking | -11 -10 -10 --------- Run | Yrd Mat Min Machines Accessed 7 | . 7 . Terminals 6 | . 6 . Fabricators . | . . . Repair Stations . | . . . Recycling Units 1 | . 1 . Scanalyzers . | . . . Garrison Access . | . . . Total Hacks 27 | . 27 . Successful 13 | . 13 . Failed 13 | . 13 . Catastrophic 1 | . 1 . Database Lockouts 1 | . 1 . Manual 23 | . 23 . Terminals 26 | . 26 . Fabricators . | . . . Repair Stations . | . . . Recycling Units 1 | . 1 . Scanalyzers . | . . . Garrison Access . | . . . Terminal Hacks 5 | . 5 . Robot Analysis 1 | . 1 . Prototype ID Bank 2 | . 2 . Locate Traps 1 | . 1 . Dispatch Records 1 | . 1 . Fabricator Hacks . | . . . Repair Station Hacks . | . . . Recycling Unit Hacks 1 | . 1 . Retrieve Components 1 | . 1 . Scanalyzer . | . . . Garrison Access Hacks . | . . . Unauthorized Hacks 7 | . 7 . Terminals 7 | . 7 . Assimilate 1 | . 1 . Botnet 1 | . 1 . Skim 5 | . 5 . Fabricators . | . . . Repair Stations . | . . . Recycling Units . | . . . Scanalyzers . | . . . Garrison Access . | . . . Data Cores Recovered . | . . . Used . | . . . Hacking Detections 6 | . 6 . Full Trace Events 1 | . 1 . Feedback Events . | . . . Feedback Blocked . | . . . Robot Schematics Acquired . | . . . Robots Built . | . . . Authchips . | . . . Time . | . . . Total Robot Build Rating . | . . . Part Schematics Acquired . | . . . Parts Built . | . . . Authchips . | . . . Time . | . . . Total Part Build Rating . | . . . Parts Repaired . | . . . Time . | . . . Parts Recycled . | . . . Recycled Matter . | . . . Retrieved Matter . | . . . Retrieved Components 2 | . 2 . Parts Scanalyzed . | . . . Part Schematics Acquired . | . . . Parts Damaged . | . . . Bothacking | -11 -10 -10 ------------ Run | Yrd Mat Min Used RIF Installer . | . . . Robots Hacked . | . . . Non-combat . | . . . Combat . | . . . Robot Hacks Applied . | . . . Relay Couplers Released . | . . . Fabnet Peak Effective % . | . . . Robots Rewired . | . . . Allies Hacked . | . . . Hacks Repelled . | . . . Allies | -11 -10 -10 -------- Run | Yrd Mat Min Total Allies . | . . . Largest Group . | . . . Highest-Rated Group . | . . . Highest-Rated Ally . | . . . Total Orders . | . . . Ally Attacks . | . . . Total Damage . | . . . Kills . | . . . Allies Corrupted . | . . . Allies Melted . | . . . Intel | -11 -10 -10 ------- Run | Yrd Mat Min Active Infowar (turns) 2215 | 11 1975 229 Seismic 2215 | 11 1975 229 Robot Analysis Total 1 | . 1 . Derelict Logs Recovered . | . . . Drone Launches . | . . . Drone Recoveries . | . . . Exploration | -11 -10 -10 ------------- Run | Yrd Mat Min Turns Passed 2297 | 91 1977 229 Spaces Moved 789 | 47 678 64 Core 1 | 1 . . Treads 222 | 46 176 . Legs 337 | . 273 64 Wheels 229 | . 229 . Hover . | . . . Flight . | . . . Fastest Speed 50 | 50 160 260 Average Speed 238 | 157 242 260 Slowest Speed 680 | 160 680 260 Overloaded Moves . | . . . Propulsion Burnouts . | . . . Robots Hopped . | . . . Potential Cave-ins . | . . . Cave-ins Triggered . | . . . Exploration Rate (%) 41 | 4 96 25 Regions Visited 2 Branch Regions 1 Pre-discovered Areas . | . . . Known Exits Taken . | . . . Unknown Exits Taken 2 | 1 1 . Scrap Searched . | . . . Spaces Dug . | . . . Terrain Destroyed . | . . . Melee . | . . . Projectile . | . . . AOE . | . . . Terrain Rammed . | . . . Walls Destroyed . | . . . Machines Disabled . | . . . Actions | -11 -10 -10 --------- Run | Yrd Mat Min Total 1003 | 57 858 88 Wait 57 | . 56 1 Move 787 | 46 677 64 Hop . | . . . Pick Up 13 | 2 9 2 Fast Attach 20 | 7 13 . Attach 4 | . 3 1 Detach 1 | . 1 . Swap 4 | . 4 . Drop 4 | . 4 . Fire 113 | 2 91 20 Melee . | . . . Ram . | . . . Kick . | . . . Crush . | . . . Escape Stasis . | . . . Rewire . | . . . Trap . | . . . Miscellaneous . | . . . Route ------- -11/Scrapyard -10/Materials (discovered 4 exits: [*Mat x3] / [*Min]) -10/Mines History --------- Turn | Location | Event 35 | -11/Scrapyard | Discovered new exit (range 16) 92 | -11/Scrapyard | Entered Materials 311 | -10/Materials | Build established: Mutant 458 | -10/Materials | Central database locked down 620 | -10/Materials | Discovered new exit (range 15) 849 | -10/Materials | Discovered new exit (range 7) 1096 | -10/Materials | Core integrity fell below 50% 1188 | -10/Materials | Lost 3 parts (1p2w) 1499 | -10/Materials | Discovered new exit (range 16) 1534 | -10/Materials | Build established: Scavenger-Mutant 1687 | -10/Materials | Discovered new exit (range 14) 2069 | -10/Materials | Entered Mines 2084 | -10/Mines | Core integrity fell below 20% 2298 | -10/Mines | Destroyed by S-10 Pest with Light Assault Rifle Last Messages --------------- 02075_ G-34 Mercenary destroyed. 02079_ Lgt. Assault Rifle destroyed. 02084_ G-47 Trooper destroyed. 02089_ Acquired 56 matter. 02094_ Acquired Imp. Heat Sink. 02098_ Acquired 38 matter. 02100_ System corrupted: Matter fused (-10). 02106_ Acquired Particle Gun. 02160_ System corrupted: Heat flow error (+178). 02253_ Critical hit (Burn: +37). 02261_ G-34 Mercenary destroyed. 02273_ R-06 Scavenger collects Ion Engine. 02276_ Particle Gun melted. 02276_ G-47 Trooper destroyed. 02276_ R-06 Scavenger collects Sml. Laser. 02280_ R-06 Scavenger collects Aluminum Leg. 02289_ S-10 Pest destroyed. 02292_ Flight Unit melted. 02292_ S-10 Pest destroyed. Map ----- +----------------------------------------------------+ | ????????????????????????????????????????????? | | ????????????????????????????????????????????? | | ????????????????????????????????????????????? | | ????????????????????????????????????????????? | | ????????????????????????????????????????????? | | ????????????????????????????????????????????? | | ????????????????????????????????????????????? | | ????????????????????????????????????????????? | | ????????????????????????????????????????????? | | ????????????????????????????????????????????? | | ????????????????????????????????????????????? | | ????????????????????????????????????????????? | | ????????????????????????????????????????????? | | ????????????????????????????????????????????? | | ????????????????????????????????????????????? | | ????????????????????????????????????????????? | | ????????????????????????????????????????????? | | ????????##?????????????????????????????? #??? | | ???????## ???????????????????????????? #??? | | ???????# ??????????????????####???? #??? | | ???????# ????????????????## ##??? #??? | | ???????# #????????????### ##?# #### | | ???????# ??????????## ## | | ????????# ########## | | ????????# =%%u[ r | | ????????# =s@ rt | | ????????# ############### # | | ???????# ??????????????## """ ## | | ???????# ??????????????## """ ## | | ??????# ??????????##### """ # | | ??????# ??????????## ## | | ??????## ??????????# #####? | | ???????## ??????????# ##???? | | ????????## ??????????## #???? | | ?????????# ????????????## #???? | | ????????? ## ?????????????#### ##???? | | ?????????? ?###??????####??????## #????? | | ??????????????????###### ##??????## ##???? | | ?????????????????## #####???# #???? | | ???????????????### ##### #???? | | ??????????????## ##???? | | ??????????????# ###### ##### ##????? | | ??????????????# ##????# ##### #?????? | | ??????????????## #####?????# #?????? | | ???????????????####?????????# ##?????? | | ????????????????????????????##########??????? | | ????????????????????????????????????????????? | | ????????????????????????????????????????????? | | ????????????????????????????????????????????? | | ????????????????????????????????????????????? | +----------------------------------------------------+ Best States ------------- Heat Dissipation 25 Energy Generation 10 Energy Capacity 250 Matter Stores 300 Matter Capacity 300 Sight Range 16 Terrain Scan Density 10 Evasion (%) 40 Recoil Reduction 2 Item Schematics ----------------- None Robot Schematics ------------------ None Fabricated ------------ Nothing Repaired ---------- Nothing Alien Tech Used ----------------- None Achievements -------------- None Challenges ------------ None Game ------ Seed PlatingEncryptedDerivative Manual? 0 Play Time 00:10:48 Cumulative 153.6 hours Start 2025.07.29 @ 20:22:25 End 2025.07.29 @ 20:32:30 Sessions 1 Manual Loads 0 Difficulty Rogue Special Mode None Game No. 136 Rogue 136 Adventurer 0 Explorer 0 Win Type - Total 3 Types 2/0/1/0/0/0/0/0/0/0 Lore% 72 Gallery% 66 Achievement% 60 Wizard Run 0 Options --------- Layout 1 ASCII 0 Keyboard 0 Movement Numpad Keybinds 0 Fullscreen 1 Font 24/Smallcaps Map View 50x35 Zoom Use 0% Tactical HUD 1 Map Filters NONE Filters NONE Steam 1 RUN: 31e3166b-5c8e-49a9-a38f-0f10b468461c